bitfinex/quotes_ETHUSD_20230109
["timestamp","ask_amount","ask_price","bid_price","bid_amount"]
[1673269653254,5.32624742,1321.7,1321.6,0.77411709]
[1673269653468,2.49837541,1321.7,1321.6,0.77411709]
[1673269653707,2.49237541,1321.7,1321.6,0.77411709]
[1673269654666,2.26237541,1321.7,1321.6,23.47385709]
[1673269654817,5.15624742,1321.8,1321.6,8.43669709]
[1673269655028,2.26837541,1321.8,1321.7,1.708]
[1673269655298,2.26237541,1321.8,1321.7,16.84002]
[1673269655465,2.26237541,1321.8,1321.7,16.93602]
[1673269655881,2.26237541,1321.8,1321.7,9.37001]
[1673269657990,2.26237541,1321.8,1321.7,16.93373687]
[1673269659038,5.15624742,1321.9,1321.7,16.93373687]
[1673269659261,5.09624742,1321.9,1321.8,1.724]
[1673269659586,2.83387201,1321.9,1321.8,1.724]
[1673269659791,2.82787201,1321.9,1321.8,1.724]
[1673269663660,2.82787201,1321.9,1321.8,16.85488]
[1673269663869,2.2620161,1321.9,1321.8,24.51632]
[1673269664860,2.2620161,1321.9,1321.8,1.82]
[1673269665010,2.2620161,1321.9,1321.8,1.724]
[1673269667166,20.21960811,1321.9,1321.8,1.724]
[1673269667320,12.66074811,1321.9,1321.8,1.71250989]
[1673269667689,2.2680161,1321.9,1321.8,1.71250989]
[1673269667866,2.2620161,1321.9,1321.8,1.71250989]
[1673269669014,9.8268761,1321.9,1321.8,1.71250989]
[1673269669231,9.8328761,1321.9,1321.8,1.71250989]
[1673269671589,27.79046811,1321.9,1321.8,1.71250989]
[1673269671760,20.22560811,1321.9,1321.8,1.71250989]
[1673269672158,12.66074811,1321.9,1321.8,1.71250989]
[1673269672648,5.09588811,1321.9,1321.8,1.71250989]
[1673269675428,20.22401368,1321.9,1321.7,1.724]
[1673269675779,24.21917368,1321.8,1321.6,25.40591709]
[1673269676037,9.09429368,1321.8,1321.6,25.40591709]
[1673269676254,9.09429368,1321.8,1321.6,12.62771709]
[1673269676606,5.09429368,1321.8,1321.6,12.62771709]
[1673269677501,5.09429368,1321.8,1321.6,20.19404709]
[1673269677734,5.09429368,1321.8,1321.6,27.76062709]
[1673269678418,2.26642167,1321.8,1321.6,27.76062709]
[1673269678632,5.08829368,1321.8,1321.6,35.32720709]
[1673269678850,5.09429368,1321.8,1321.6,35.32720709]
[1673269681082,2.26042167,1321.7,1321.6,35.32720709]
[1673269681924,2.26042167,1321.7,1321.6,25.29360709]
[1673269682449,2.26042167,1321.7,1321.6,17.72702709]
[1673269683072,2.26042167,1321.7,1321.6,10.16044709]
[1673269684018,2.26042167,1321.7,1321.6,25.29360709]
[1673269684180,2.26042167,1321.7,1321.6,17.72702709]
[1673269684720,2.26042167,1321.7,1321.6,25.29360709]
[1673269684916,2.26042167,1321.7,1321.6,17.72702709]
[1673269688651,2.26042167,1321.7,1321.6,25.29360709]
[1673269688959,2.26042167,1321.7,1321.6,17.72702709]
[1673269690815,2.26042167,1321.7,1321.6,25.29360709]
[1673269691324,2.26042167,1321.7,1321.6,25.29149648]
[1673269691795,2.26042167,1321.7,1321.6,17.72491648]
[1673269692378,5.15429368,1321.8,1321.6,30.81315712]
[1673269692594,5.09429368,1321.8,1321.7,1.724]
[1673269692854,5.09429368,1321.8,1321.7,24.42203]
[1673269693174,5.09429368,1321.8,1321.7,24.51803]
[1673269695629,5.09429368,1321.8,1321.7,24.51603]
[1673269695899,2.83387201,1321.8,1321.7,24.51803]
[1673269696057,5.09209944,1321.8,1321.7,24.51803]
[1673269696266,5.09809944,1321.8,1321.7,24.51803]
[1673269699685,5.09809944,1321.8,1321.7,22.79403]
[1673269702088,2.83387201,1321.8,1321.7,15.22802]
[1673269702313,3.34368195,1321.8,1321.7,0.096]
[1673269702479,11.47599754,1321.8,1321.6,4.56966712]
[1673269702833,5.09402163,1321.7,1321.6,4.56966712]
[1673269703148,5.10002163,1321.7,1321.6,4.56966712]
[1673269703455,2.83600882,1321.7,1321.6,4.56966712]
[1673269703668,5.09383918,1321.7,1321.6,4.56966712]
[1673269703883,5.09983918,1321.7,1321.6,4.56966712]
[1673269705357,2.83600882,1321.7,1321.6,4.56966712]
[1673269705509,2.83000882,1321.7,1321.6,4.56966712]
[1673269705877,5.09293351,1321.7,1321.6,4.56966712]
[1673269706236,5.09893351,1321.7,1321.6,4.56966712]
[1673269707990,5.09893351,1321.7,1321.6,0.77200648]
[1673269708784,2.83600882,1321.7,1321.6,0.77200648]
[1673269708993,2.83000882,1321.7,1321.6,0.77200648]
[1673269709244,10.39601882,1321.7,1321.6,0.77200648]
[1673269709410,5.09944233,1321.7,1321.6,15.90516648]
[1673269709625,5.09944233,1321.7,1321.6,23.56774648]
[1673269710796,2.83600882,1321.7,1321.6,16.00116648]
[1673269711025,6.00600474,1321.7,1321.6,16.00116648]
[1673269711231,6.01200474,1321.7,1321.6,16.00116648]
[1673269712552,3.74820781,1321.7,1321.6,16.00116648]
[1673269712760,3.74820781,1321.7,1321.6,8.43458648]
[1673269712761,3.74220781,1321.7,1321.6,8.43458648]
[1673269713037,3.74220781,1321.7,1321.6,0.86800648]
[1673269713383,3.74220781,1321.7,1321.6,0.77200648]
[1673269713707,0.91219899,1321.7,1321.6,0.7687974]
[1673269717731,27.24097659,1321.7,1321.6,0.7687974]
[1673269720167,32.95397659,1321.7,1321.6,0.7687974]
[1673269720431,33.52177659,1321.7,1321.6,0.7687974]
[1673269726090,33.57177659,1321.7,1321.6,0.7687974]
[1673269726293,31.80877659,1321.7,1321.6,0.7687974]
[1673269730195,39.21799421,1321.7,1321.6,0.7687974]
[1673269730368,39.7828086,1321.7,1321.6,0.7687974]
[1673269730776,40.38492422,1321.7,1321.6,0.7687974]
[1673269731931,43.38492422,1321.7,1321.6,0.7687974]
[1673269732817,48.38492422,1321.7,1321.6,0.7687974]
[1673269733138,64.67458486,1321.7,1321.6,0.7687974]
[1673269733787,64.67458486,1321.7,1321.6,0.76570052]
[1673269735347,19.43099083,1321.7,1321.6,0.76570052]
[1673269735517,42.12902083,1321.7,1321.6,0.76570052]
[1673269737288,33.74014461,1321.7,1321.6,0.76570052]
[1673269738357,37.13032151,1321.7,1321.6,0.76570052]
[1673269738797,42.13032151,1321.7,1321.6,0.76570052]
[1673269740791,37.13032151,1321.7,1321.6,0.76570052]
[1673269742640,33.74014461,1321.7,1321.6,0.76570052]
[1673269743873,33.13802899,1321.7,1321.6,0.76570052]
[1673269746338,37.09759098,1321.7,1321.6,0.76570052]
[1673269748466,33.12802899,1321.7,1321.6,0.76570052]
[1673269748685,37.08759098,1321.7,1321.6,0.76570052]
[1673269755360,7.19556199,1321.7,1321.6,0.76570052]
[1673269755572,14.76157199,1321.7,1321.6,0.76570052]
[1673269755807,22.32758199,1321.7,1321.6,0.76570052]
[1673269756032,3.96556199,1321.7,1321.6,0.76570052]
[1673269756244,3.39742507,1321.7,1321.6,2.48870052]
[1673269756479,3.39742507,1321.7,1321.6,11.06082657]
[1673269756649,3.39742507,1321.7,1321.6,11.15682657]
[1673269756833,3.39742507,1321.7,1321.6,3.59024657]
[1673269757044,3.39742507,1321.7,1321.6,3.49424657]
[1673269758846,3.39742507,1321.7,1321.6,1.77124657]
[1673269760006,3.39742507,1321.7,1321.6,3.47924657]
[1673269760656,18.59454507,1321.8,1321.6,3.47924657]
[1673269760868,10.96886507,1321.8,1321.6,3.47924657]
[1673269762138,26.10022507,1321.8,1321.6,3.47924657]
[1673269762350,3.39742507,1321.7,1321.6,2.47370052]
[1673269762540,26.09545507,1321.7,1321.6,2.47370052]
[1673269762775,26.10145507,1321.7,1321.6,2.47370052]
[1673269765358,26.10145507,1321.7,1321.6,0.76570052]
[1673269766920,26.10110925,1321.7,1321.6,0.76570052]
[1673269768560,22.70403,1321.7,1321.6,0.76570052]
[1673269768867,26.10091398,1321.7,1321.6,0.76570052]
[1673269769019,22.70403,1321.7,1321.6,0.76570052]
[1673269771801,26.66359199,1321.7,1321.6,0.76359084]
[1673269772186,27.26950645,1321.7,1321.6,0.76359084]
[1673269772393,28.98350645,1321.7,1321.6,0.76359084]
[1673269772608,32.98350645,1321.7,1321.6,0.76359084]
[1673269773908,28.98350645,1321.7,1321.6,0.76359084]
[1673269774489,26.66359199,1321.7,1321.6,0.76359084]
[1673269775135,26.89359199,1321.7,1321.6,0.76359084]
[1673269793873,26.89359199,1321.7,1321.6,0.76138485]
[1673269796183,26.94359199,1321.7,1321.6,0.76138485]
[1673269796405,26.89359199,1321.7,1321.6,0.76138485]
[1673269797089,28.60859199,1321.7,1321.6,0.76138485]
[1673269797284,32.60859199,1321.7,1321.6,0.76138485]
[1673269798445,36.40625263,1321.7,1321.6,0.76138485]
[1673269798974,32.44669064,1321.7,1321.6,0.76138485]
[1673269800859,33.01449064,1321.7,1321.6,0.76138485]
[1673269801805,37.69709311,1321.7,1321.6,0.76138485]
[1673269802271,33.01449064,1321.7,1321.6,0.76138485]
[1673269802645,37.69709311,1321.7,1321.6,0.76138485]
[1673269803839,33.01449064,1321.7,1321.6,0.76138485]
[1673269805644,37.69709311,1321.7,1321.6,0.76138485]
[1673269816762,37.69709311,1321.7,1321.3,12.77522349]
[1673269816763,13.253,1321.6,1321.3,0.05562349]
[1673269817127,60.70396912,1321.5,1321.3,0.05562349]
[1673269817280,3.96440883,1321.4,1321.3,0.05562349]
[1673269817496,29.89759883,1321.4,1321.3,0.05562349]
[1673269817839,29.95359883,1321.4,1321.3,0.05562349]
[1673269818015,31.66859883,1321.4,1321.3,0.05562349]
[1673269819166,35.66859883,1321.4,1321.3,0.05562349]
[1673269820165,33.95359883,1321.4,1321.3,0.05562349]
[1673269823852,37.75125947,1321.4,1321.3,0.05562349]
[1673269825827,33.78685064,1321.4,1321.3,0.05562349]
[1673269826246,37.75125947,1321.4,1321.3,0.05562349]
[1673269827563,37.75125947,1321.4,1321.2,0.05562349]
[1673269827564,55.90771679,1321.4,1321.2,6.98e-06]
[1673269827914,34.27548,1321.2,1321.1,0.066]
[1673269828068,41.75871921,1321.2,1321.0,0.06633484]
[1673269828278,27.79074573,1321.1,1321.0,0.06633484]
[1673269828529,28.08674573,1321.1,1321.0,0.06633484]
[1673269828897,28.08672899,1321.1,1321.0,0.06633484]
[1673269829107,25.82788985,1321.1,1321.0,0.06633484]
[1673269829893,5.37846309,1321.1,1321.0,0.06633484]
[1673269830217,2.32489324,1321.1,1321.0,0.06633484]
[1673269830371,7.56944,1321.1,1321.0,0.06633484]
[1673269830616,22.77432,1321.1,1321.0,0.06633484]
[1673269830952,17.46377324,1321.1,1321.0,0.06633484]
[1673269831945,15.20488,1321.1,1321.0,0.06633484]
[1673269832848,22.77432,1321.1,1321.0,0.06633484]
[1673269833001,15.20488,1321.1,1321.0,0.06633484]
[1673269834707,17.46377324,1321.1,1321.0,0.06633484]
[1673269835148,15.20488,1321.1,1321.0,0.06633484]
[1673269835360,0.066,1321.1,1321.0,10.81435484]
[1673269835555,2.32489324,1321.2,1321.0,6.12931783]
[1673269835767,2.25889324,1321.2,1321.0,6.12931783]
[1673269836098,17.39722324,1321.2,1321.0,6.12931783]
[1673269836261,17.46322324,1321.2,1321.0,6.12931783]
[1673269837138,17.46322324,1321.2,1321.0,3.31033484]
[1673269837328,17.46322324,1321.2,1321.0,3.24433484]
[1673269839235,20.28679309,1321.2,1321.0,3.24433484]
[1673269840408,20.28679309,1321.2,1321.0,1.77633484]
[1673269840559,2.25889324,1321.1,1321.0,0.06633484]
[1673269840980,24.96721324,1321.1,1321.0,0.06633484]
[1673269841196,25.03321324,1321.1,1321.0,0.06633484]
[1673269841440,27.85678309,1321.1,1321.0,0.06633484]
[1673269842055,25.03321324,1321.1,1321.0,0.06633484]
[1673269843465,27.85678309,1321.1,1321.0,0.06633484]
[1673269843641,25.03321324,1321.1,1321.0,0.06633484]
[1673269844201,27.85678309,1321.1,1321.0,0.06633484]
[1673269844781,25.03321324,1321.1,1321.0,0.06633484]
[1673269844989,27.85678309,1321.1,1321.0,0.06633484]
[1673269848557,25.59788985,1321.1,1321.0,0.06633484]
[1673269849752,25.64788985,1321.1,1321.0,0.06633484]
[1673269881015,2.26502102,1321.2,1321.1,28.277554]
[1673269881161,2.26502102,1321.2,1321.1,5.569234]
[1673269881515,2.26502102,1321.2,1321.1,24.49832]
[1673269884536,5.73056156,1321.3,1321.1,24.49832]
[1673269887112,5.73056156,1321.3,1321.1,16.92888]
[1673269887305,2.26502102,1321.2,1321.1,16.92888]
[1673269887475,5.16256156,1321.3,1321.1,16.92888]
[1673269888209,5.16256156,1321.3,1321.1,9.35944]
[1673269888210,2.26502102,1321.2,1321.1,9.35944]
[1673269889067,5.16256156,1321.3,1321.1,9.35944]
[1673269889940,2.26502102,1321.2,1321.1,9.35944]
[1673269890309,2.26502102,1321.2,1321.1,16.92888]
[1673269890886,2.26502102,1321.2,1321.1,24.49832]
[1673269892475,2.26502102,1321.2,1321.1,24.49553608]
[1673269895998,5.16256156,1321.3,1321.1,24.49553608]
[1673269897994,2.26502102,1321.2,1321.1,9.35665608]
[1673269901087,2.26502102,1321.2,1321.1,16.92609608]
[1673269903543,2.26502102,1321.2,1321.1,1.78721608]
[1673269903887,5.09656156,1321.2,1321.1,1.72121608]
[1673269904167,5.16256156,1321.2,1321.1,9.29065608]
[1673269904375,5.16256156,1321.2,1321.1,1.78721608]
[1673269904596,5.16256156,1321.2,1321.1,9.29065608]
[1673269904906,5.16256156,1321.2,1321.1,9.35665608]
[1673269907166,5.16174909,1321.2,1321.1,9.35665608]
[1673269909166,5.16174909,1321.2,1321.1,16.92609608]
[1673269910213,5.16174909,1321.2,1321.1,15.20488]
[1673269910996,2.89754054,1321.2,1321.1,15.20488]
[1673269911327,2.83154054,1321.2,1321.1,15.20488]
[1673269913006,2.83154054,1321.2,1321.1,22.77432]
[1673269913220,5.09872809,1321.2,1321.1,18.411673]
[1673269913407,5.16472809,1321.2,1321.1,18.411673]
[1673269913975,5.16472809,1321.2,1321.1,15.20488]
[1673269914322,5.16472809,1321.2,1321.1,0.066]
[1673269914566,2.89754054,1321.2,1321.0,16.92928]
[1673269914786,5.0986172,1321.2,1321.0,28.29669064]
[1673269914997,5.1646172,1321.2,1321.0,35.89085832]
[1673269915218,2.26707666,1321.1,1321.0,35.89085832]
[1673269915585,2.26707666,1321.1,1321.0,28.32110832]
[1673269915904,2.26707666,1321.1,1321.0,35.89112832]
[1673269916110,2.89754054,1321.2,1321.0,37.77010505]
[1673269916111,5.1646172,1321.2,1321.0,37.77010505]
[1673269916456,2.33307666,1321.2,1321.1,13.29344]
[1673269916648,2.33307666,1321.2,1321.1,9.35608892]
[1673269916649,2.26707666,1321.2,1321.1,9.35608892]
[1673269917067,2.26707666,1321.2,1321.1,16.92552892]
[1673269917288,2.26707666,1321.2,1321.1,24.49496892]
[1673269926765,2.263761,1321.2,1321.1,24.49496892]
[1673269931892,2.263761,1321.2,1321.1,32.81067028]
[1673269932126,0.066,1321.3,1321.1,32.81067028]
[1673269932347,11.21464054,1321.4,1321.1,32.81067028]
[1673269932915,2.83154054,1321.3,1321.1,32.81067028]
[1673269933664,11.21464054,1321.4,1321.1,32.81067028]
[1673269934536,10.64674054,1321.4,1321.3,1.724]
[1673269934718,12.91329548,1321.4,1321.3,36.5194267]
[1673269934926,12.91329548,1321.4,1321.3,36.5854267]
[1673269935140,10.08175494,1321.4,1321.3,36.5854267]
[1673269935655,3.78121,1321.4,1321.3,38.3094267]
[1673269935864,3.71521,1321.4,1321.3,38.3094267]
[1673269940313,3.71521,1321.4,1321.3,36.5854267]
[1673269944253,3.71521,1321.4,1321.3,4.5882267]
[1673269944444,3.71521,1321.4,1321.3,3.79766064]
[1673269944664,3.71521,1321.4,1321.3,26.50256064]
[1673269944848,3.71521,1321.4,1321.3,26.56856064]
[1673269957077,3.71521,1321.4,1321.3,26.56607178]
[1673269964252,3.71521,1321.4,1321.3,28.27407178]
[1673269964375,3.71521,1321.4,1321.3,32.42984296]
[1673269973696,5.98176494,1321.4,1321.3,32.42984296]
[1673269973910,6.04776494,1321.4,1321.3,32.42984296]
[1673269976411,6.04776494,1321.4,1321.3,32.42784296]
[1673269976609,6.04776494,1321.4,1321.3,32.42984296]
[1673269977444,5.89776494,1321.4,1321.3,32.42984296]
[1673269979472,5.89776494,1321.4,1321.3,28.27407178]
[1673269980307,8.72930548,1321.4,1321.3,28.27407178]
[1673269980516,8.72930548,1321.4,1321.3,20.70577178]
[1673269980726,8.72930548,1321.4,1321.3,28.27407178]
[1673269981153,5.89776494,1321.4,1321.3,28.27407178]
[1673269981778,5.89776494,1321.4,1321.3,31.30024191]
[1673269982004,3.63121,1321.4,1321.3,31.30024191]
[1673269982214,3.56521,1321.4,1321.3,31.30024191]
[1673269982669,5.83176494,1321.4,1321.3,11.42947178]
[1673269982862,8.72930548,1321.4,1321.3,3.86117178]
[1673269983083,8.72930548,1321.4,1321.3,3.79517178]
[1673269983244,8.72930548,1321.4,1321.2,9.34933]
[1673269983456,2.26655494,1321.3,1321.2,11.43199064]
[1673269983786,2.26655494,1321.3,1321.2,29.56973064]
[1673269984001,2.26655494,1321.3,1321.2,33.53173138]
[1673269985619,2.26655494,1321.3,1321.2,14.43199064]
[1673269988515,2.26655494,1321.3,1321.2,22.00086064]
[1673269989950,2.26655494,1321.3,1321.2,14.43199064]
[1673269990129,2.26655494,1321.3,1321.2,22.00086064]
[1673269990334,2.26655494,1321.3,1321.2,14.43199064]
[1673269990657,2.26655494,1321.3,1321.2,29.56973064]
[1673269991195,2.26655494,1321.3,1321.2,22.00086064]
[1673269991365,2.26655494,1321.3,1321.2,29.56973064]
[1673269992124,2.26655494,1321.3,1321.2,22.00086064]
[1673269994648,2.26655494,1321.3,1321.2,29.56973064]
[1673269995468,2.26655494,1321.3,1321.2,22.00086064]
[1673269995889,2.26655494,1321.3,1321.2,29.56973064]
[1673269997658,2.26655494,1321.3,1321.2,22.00086064]
[1673269998009,2.26655494,1321.3,1321.2,29.56973064]
[1673269998195,8.72930548,1321.4,1321.2,29.56973064]
[1673270000990,8.72930548,1321.4,1321.2,22.00086064]
[1673270001805,8.72930548,1321.4,1321.2,29.56973064]
[1673270002237,8.72930548,1321.4,1321.2,29.56662393]
[1673270003347,8.72930548,1321.4,1321.2,21.99775393]
[1673270004111,8.72930548,1321.4,1321.2,29.56662393]
[1673270005429,8.72930548,1321.4,1321.2,21.99775393]
[1673270005640,8.72930548,1321.4,1321.2,29.56662393]
[1673270006630,8.72930548,1321.4,1321.2,21.99775393]
[1673270007104,2.26655494,1321.3,1321.2,21.99775393]
[1673270007315,8.72930548,1321.4,1321.2,21.99775393]
[1673270008648,2.26655494,1321.3,1321.2,29.56662393]
[1673270009082,2.26655494,1321.3,1321.2,35.79877237]
[1673270009428,0.066,1321.4,1321.3,3.13090376]
[1673270009618,2.88852828,1321.7,1321.3,43.15468864]
[1673270009951,0.716,1321.5,1321.4,31.37944324]
[1673270010171,0.716,1321.5,1321.4,40.76532744]
[1673270010311,0.716,1321.5,1321.4,36.76532744]
[1673270010523,0.716,1321.5,1321.4,35.64388162]
[1673270011373,0.716,1321.5,1321.4,37.52214662]
[1673270012410,0.716,1321.5,1321.4,35.64388162]
[1673270013423,0.716,1321.5,1321.4,39.09188162]
[1673270018313,28.40088273,1321.8,1321.4,44.68674236]
[1673270018522,0.006,1321.8,1321.7,26.49569064]
[1673270018731,0.17455419,1321.9,1321.7,46.1660532]
[1673270018732,0.11455419,1321.9,1321.7,46.1660532]
[1673270018946,0.11455419,1321.9,1321.8,26.49398064]
[1673270019160,0.11455419,1321.9,1321.8,29.55998064]
[1673270019366,0.11455419,1321.9,1321.8,30.31712742]
[1673270019593,0.11455419,1321.9,1321.8,19.67629807]
[1673270019788,0.11455419,1321.9,1321.8,0.066]
[1673270019994,0.11455419,1321.9,1321.7,7.5657]
[1673270019995,0.11455419,1321.9,1321.7,15.1974]
[1673270020256,2.37863309,1321.9,1321.7,18.99506064]
[1673270020430,0.11455419,1321.9,1321.7,18.99506064]
[1673270020617,2.37863309,1321.9,1321.7,26.56107064]
[1673270020831,0.11455419,1321.9,1321.7,26.56107064]
[1673270021485,0.11455419,1321.9,1321.8,3.79766064]
[1673270021689,0.11455419,1321.9,1321.8,26.49398064]
[1673270021869,0.11455419,1321.9,1321.8,26.55998064]
[1673270028607,0.11455419,1321.9,1321.8,18.99454064]
[1673270029500,0.11455419,1321.9,1321.8,26.55998064]
[1673270029670,0.11455419,1321.9,1321.8,30.1447427]
[1673270031415,0.11455419,1321.9,1321.8,26.55998064]
[1673270031544,0.11455419,1321.9,1321.8,3.86366064]
[1673270031757,0.11455419,1321.9,1321.8,11.36310064]
[1673270032017,0.11455419,1321.9,1321.8,11.42910064]
[1673270033180,0.11455419,1321.9,1321.8,3.86366064]
[1673270033332,0.11455419,1321.9,1321.8,11.36310064]
[1673270033543,0.11455419,1321.9,1321.8,11.42910064]
[1673270034169,0.11455419,1321.9,1321.8,18.99454064]
[1673270034716,0.11455419,1321.9,1321.8,11.42910064]
[1673270036499,2.37863309,1321.9,1321.8,11.42910064]
[1673270037986,2.37863309,1321.9,1321.8,18.99454064]
[1673270037987,0.11455419,1321.9,1321.8,18.99454064]
[1673270038534,2.37863309,1321.9,1321.8,15.19688]
[1673270038907,2.37863309,1321.9,1321.8,22.75878064]
[1673270039341,0.11455419,1321.9,1321.8,22.75878064]
[1673270040374,2.37863309,1321.9,1321.8,7.62790064]
[1673270040636,2.37863309,1321.9,1321.8,0.066]
[1673270040806,2.37863309,1321.9,1321.7,15.19731]
[1673270041024,2.37863309,1321.9,1321.7,26.56077064]
[1673270041378,5.21316137,1321.9,1321.7,26.56077064]
[1673270041683,5.21916137,1321.9,1321.7,26.56077064]
[1673270044103,2.2640789,1321.8,1321.7,26.56077064]
[1673270045159,5.27540117,1321.9,1321.7,26.56077064]
[1673270045345,5.21540117,1321.9,1321.7,26.56077064]
[1673270045770,2.2640789,1321.8,1321.7,26.56077064]
[1673270048371,2.2640789,1321.8,1321.7,31.3233062]
[1673270050933,2.2660789,1321.8,1321.7,31.3213062]
[1673270051250,2.2640789,1321.8,1321.7,31.3233062]
[1673270060238,5.09860718,1321.8,1321.7,31.3233062]
[1673270060500,5.10460718,1321.8,1321.7,31.3233062]
[1673270062502,2.2700789,1321.8,1321.7,31.3233062]
[1673270062715,2.2640789,1321.8,1321.7,31.3233062]
[1673270065593,5.27540117,1321.9,1321.7,31.3233062]
[1673270065789,2.2640789,1321.8,1321.7,31.3233062]
[1673270065998,2.2640789,1321.8,1321.7,31.32019298]
[1673270066598,5.27540117,1321.9,1321.7,33.04419298]
[1673270066840,2.38087289,1321.9,1321.8,3.79766064]
[1673270067055,2.37487289,1321.9,1321.8,26.49398064]
[1673270067336,2.37487289,1321.9,1321.8,30.62088494]
[1673270067544,5.20940117,1321.9,1321.8,30.62088494]
[1673270067750,2.38087289,1321.9,1321.8,30.62088494]
[1673270067974,2.37487289,1321.9,1321.8,30.62088494]
[1673270072401,5.20940117,1321.9,1321.8,26.55998064]
[1673270072708,5.21540117,1321.9,1321.8,26.55998064]
[1673270074223,2.95132227,1321.9,1321.8,26.55998064]
[1673270074533,2.94532227,1321.9,1321.8,26.55998064]
[1673270074693,5.21342276,1321.9,1321.8,26.55998064]
[1673270074903,5.21936895,1321.9,1321.8,26.55998064]
[1673270079246,2.38484067,1321.9,1321.8,30.62088494]
[1673270079461,2.37884067,1321.9,1321.8,30.62088494]
[1673270081331,0.11079399,1321.9,1321.8,30.62088494]
[1673270081539,0.11079399,1321.9,1321.8,32.34488494]
[1673270081990,2.37884067,1321.9,1321.8,32.34488494]
[1673270085437,5.21336895,1321.9,1321.8,9.64856494]
[1673270085662,5.21936895,1321.9,1321.8,32.34488494]
[1673270088307,5.21936895,1321.9,1321.8,30.62088494]
[1673270088521,5.21936895,1321.9,1321.8,30.61860641]
[1673270091678,2.38484067,1321.9,1321.8,30.61860641]
[1673270091990,2.37884067,1321.9,1321.8,30.61860641]
[1673270092360,5.21336895,1321.9,1321.8,30.61860641]
[1673270092581,5.21936895,1321.9,1321.8,30.61860641]
[1673270093245,2.38484067,1321.9,1321.8,30.61660641]
[1673270093456,2.37884067,1321.9,1321.8,30.61860641]
[1673270093998,5.21336895,1321.9,1321.8,30.61860641]
[1673270094141,5.21936895,1321.9,1321.8,30.61860641]
[1673270094356,2.38484067,1321.9,1321.8,30.61860641]
[1673270094564,2.37884067,1321.9,1321.8,30.61860641]
[1673270095253,2.37884067,1321.9,1321.8,33.61860641]
[1673270096190,2.37884067,1321.9,1321.8,35.34260641]
[1673270103440,2.37884067,1321.9,1321.8,35.57260641]
[1673270106376,5.21336895,1321.9,1321.8,35.57260641]
[1673270106627,5.21936895,1321.9,1321.8,35.57260641]
[1673270107381,2.38484067,1321.9,1321.8,35.57260641]
[1673270107649,2.37884067,1321.9,1321.8,35.57260641]
[1673270107864,2.37884067,1321.9,1321.8,35.34260641]
[1673270109011,5.21336895,1321.9,1321.8,35.57260641]
[1673270109200,5.21936895,1321.9,1321.8,35.56954887]
[1673270112849,2.38484067,1321.9,1321.8,35.56954887]
[1673270113174,2.37884067,1321.9,1321.8,35.56954887]
[1673270119989,0.11079399,1321.9,1321.8,40.26396572]
[1673270120230,5.29280963,1322.1,1321.9,5.57879397]
[1673270120450,2.39828135,1322.1,1322.0,37.47682064]
[1673270120617,2.39228135,1322.1,1322.0,37.77282064]
[1673270122010,2.39228135,1322.1,1322.0,5.57766064]
[1673270122413,2.39228135,1322.1,1322.0,13.14195064]
[1673270122647,2.39228135,1322.1,1322.0,20.70624064]
[1673270122961,2.39228135,1322.1,1322.0,30.57485468]
[1673270129762,2.39428135,1322.1,1322.0,30.57285468]
[1673270129972,2.39228135,1322.1,1322.0,30.57485468]
[1673270131074,2.53528136,1322.1,1322.0,30.57485468]
[1673270131280,2.53528136,1322.1,1322.0,23.01056468]
[1673270131491,2.53528136,1322.1,1322.0,20.70624064]
[1673270131820,5.36980964,1322.1,1322.0,20.70624064]
[1673270132127,5.37580964,1322.1,1322.0,20.70624064]
[1673270132966,5.37580964,1322.1,1322.0,28.27053064]
[1673270132967,2.54128136,1322.1,1322.0,28.27053064]
[1673270133174,2.53528136,1322.1,1322.0,28.27053064]
[1673270134388,2.53728136,1322.1,1322.0,28.26853064]
[1673270134602,2.53528136,1322.1,1322.0,28.27053064]
[1673270135335,2.53528136,1322.1,1322.0,20.70624064]
[1673270136110,2.53528136,1322.1,1322.0,18.99224064]
[1673270136311,5.36980964,1322.1,1322.0,3.86366064]
[1673270136525,5.37580964,1322.1,1322.0,3.79766064]
[1673270136731,3.10776296,1322.1,1322.0,3.79766064]
[1673270136948,3.10176296,1322.1,1322.0,3.79766064]
[1673270137331,3.10176296,1322.1,1322.0,11.36195064]
[1673270137586,3.10176296,1322.1,1322.0,26.55653064]
[1673270139782,3.10176296,1322.1,1322.0,18.99224064]
[1673270140833,3.10176296,1322.1,1322.0,11.42795064]
[1673270141212,5.94841325,1322.1,1322.0,0.066]
[1673270141451,5.94841325,1322.1,1321.9,0.11079397]
[1673270141452,21.08185325,1322.1,1321.9,0.11079397]
[1673270141651,2.83406723,1322.0,1321.9,3.90845461]
[1673270142056,1.714,1322.0,1321.9,0.11079397]
[1673270142424,2.2817,1322.0,1321.9,0.11079397]
[1673270143525,5.67127857,1322.0,1321.9,0.11079397]
[1673270143740,5.67727857,1322.0,1321.9,0.11079397]
[1673270144198,5.67727857,1322.0,1321.9,0.10774198]
[1673270144487,2.2877,1322.0,1321.9,0.10774198]
[1673270144660,2.2817,1322.0,1321.9,0.10774198]
[1673270144973,2.2817,1322.0,1321.9,7.67260198]
[1673270145163,2.2817,1322.0,1321.9,7.73860198]
[1673270145340,2.2817,1322.0,1321.9,0.17374198]
[1673270145551,2.2817,1322.0,1321.9,0.10774198]
[1673270147281,2.2817,1322.0,1321.9,7.67260198]
[1673270147491,2.2817,1322.0,1321.9,7.73860198]
[1673270147873,4.86851425,1322.0,1321.9,7.73860198]
[1673270148083,3.40051425,1322.0,1321.9,7.73860198]
[1673270148314,2.83281425,1322.0,1321.9,7.73860198]
[1673270148873,2.83281425,1322.0,1321.9,0.17374198]
[1673270149034,17.56914325,1322.1,1321.9,0.10774198]
[1673270149231,2.83256962,1322.0,1321.9,15.23736198]
[1673270149441,2.83256962,1322.0,1321.9,15.30336198]
[1673270151537,2.83256962,1322.0,1321.9,22.86822198]
[1673270152048,2.83256962,1322.0,1321.9,15.30336198]
[1673270152411,2.83256962,1322.0,1321.9,22.86822198]
[1673270152804,5.09820451,1322.0,1321.9,22.86822198]
[1673270153030,5.10420451,1322.0,1321.9,22.86822198]
[1673270153290,2.27163489,1322.0,1321.9,22.86822198]
[1673270153426,2.26563489,1322.0,1321.9,22.86822198]
[1673270154922,5.09820451,1322.0,1321.9,22.86822198]
[1673270155126,5.10420451,1322.0,1321.9,22.86822198]
[1673270155630,2.27163489,1322.0,1321.9,22.86822198]
[1673270155845,2.26563489,1322.0,1321.9,22.86822198]
[1673270159744,2.26563489,1322.0,1321.9,15.30336198]
[1673270160007,2.26563489,1322.0,1321.9,22.86822198]
[1673270160212,2.26563489,1322.0,1321.9,15.30336198]
[1673270160432,5.09820451,1322.0,1321.9,15.30336198]
[1673270160579,5.10420451,1322.0,1321.9,15.30336198]
[1673270161644,5.10420451,1322.0,1321.9,26.66588262]
[1673270161834,0.006,1322.0,1321.9,28.25228939]
[1673270162050,5.99303919,1322.1,1321.9,28.25228939]
[1673270162051,5.37143919,1322.1,1321.9,28.25228939]
[1673270162260,5.37143919,1322.1,1322.0,26.49053064]